[Event "European Women-ch 2023"]
[Site "Petrovac"]
[Date "2023.03.21"]
[Round "4.12"]
[White "Skvortsova, Alena"]
[Black "Zhukova, Natalia"]
[Result "0-1"]
[ECO "C78"]
[WhiteElo "2032"]
[BlackElo "2322"]
[Annotator "TA"]
[PlyCount "70"]
[EventDate "2023.03.15"]
[EventType "swiss"]
[EventCountry "MNE"]
[SourceTitle "playchess.com"]
[Source "ChessBase"]
[SourceQuality "1"]
[TimeControl "40/5400+30:1800+30"]

{[%evp 17,69,35,40,0,7,0,0,0,2,0,0,6,1,0,19,0,0,0,0,0,7,0,1,0,0,0,-24,-14,0,0,0,0,0,0,0,0,56,15,25,15,14,0,0,0,0,-437,-423,-410,-412,-720,-678,-2164,-2242,-29999]} 1. e4 {[%emt 0:00:04]} e5 {[%emt 0:00:22]} 2. Nf3 {[%emt 0:00:08]} Nc6 {[%emt 0:00:10]} 3. Bb5 {[%emt 0:00:06][%cal Bf1b5,Bb5a4,Ba4b3][%mdl 32]} a6 {[%emt 0:00:31]} 4. Ba4 {[%emt 0:00:07]} Nf6 {[%emt 0:00:29]} 5. O-O {[%emt 0:00:50]} b5 {[%emt 0:01:58]} 6. Bb3 {[%emt 0:00:07]} Bc5 {[%emt 0:00:12]} 7. c3 {[%emt 0:00:45]} d6 {[%emt 0:00:56]} 8. d4 {[%emt 0:00:34]} Bb6 {[%emt 0:00:14]} 9. a4 {[%emt 0:01:02]} Rb8 {[%emt 0:01:14]} 10. a5 {[%emt 0:00:34] 10.a5 scores better than 10.axb5. C78: Ruy Lopez: Archangelsk and Möller Defences.} Ba7 {[%emt 0:00:08]} (10... Nxa5 11. Rxa5 Bxa5 12. dxe5 $14) (10... Bxa5 $2 11. dxe5 dxe5 12. Qxd8+ Kxd8 13. Bd5 (13. Bxf7 Bb6 $16) 13... Nxd5 14. exd5 $18) 11. Be3 {[%emt 0:01:38]} Bg4 {[%emt 0:00:41]} 12. Nbd2 {[%emt 0:00:52] White wants to play dxe5. The position is equal.} exd4 {[%emt 0:04:39]} 13. cxd4 {[%emt 0:00:09] Hoping for Qc1.} O-O $1 {[%emt 0:00:13][%cal Oc6d4]} 14. h3 {[%emt 0:01:44]} Bh5 {[%emt 0:01:12][%cal Oa7d4]} (14... Bxf3 15. Nxf3 d5 16. e5 $16) 15. Qc1 {[%emt 0:03:29]} Nb4 {[%emt 0:03:38][%cal Oc7c5]} 16. Qc3 {[%emt 0:00:47]} c5 {[%emt 0:00:30]} 17. dxc5 {[%emt 0:00:19]} dxc5 {[%emt 0:00:27]} 18. Bg5 $1 {[%emt 0:00:36] e5 is the strong threat.} (18. Bxc5 Rc8 19. Bxa7 Rxc3 20. bxc3 Nd3 $15) (18. g4 Bg6 $15) 18... h6 {[%emt 0:02:47]} 19. Bh4 {[%emt 0:00:45]} Nd3 {[%emt 0:08:40]} (19... Nc6 $5 {[%cal Rc5c4]}) 20. e5 {[%emt 0:13:43]} (20. Bxf6 {is interesting.} gxf6 21. Rad1 Bxf3 22. Nxf3 c4 23. Bc2) 20... Bxf3 {[%emt 0:01:02] [#]} 21. Bxf6 $146 {[%emt 0:22:18]} (21. gxf3 $2 Nf4 22. Bxf6 gxf6 $19) (21. Nxf3 $5 Ne4 $8 22. Qc2 $11) ({Predecessor:} 21. exf6 Be2 22. Rae1 Bxf1 {½-½ Domanov,D (2564)-Giese,G (2494) ST-2015-0-00125 2014}) 21... gxf6 {[%emt 0:01:39]} 22. Nxf3 {[%emt 0:01:25] Threatens to win with Rad1.} fxe5 {[%emt 0:25:54]} 23. Nxe5 {[%emt 0:01:54]} Nxe5 {[%emt 0:00:15]} 24. Qxe5 {[%emt 0:00:29]} c4 {[%emt 0:04:12]} 25. Bc2 {[%emt 0:01:49]} Qg5 {[%emt 0:01:36]} 26. Qe4 {[%emt 0:17:29][%csl Gc2][%cal Re4h7] [#]} f5 {[%emt 0:20:03] Active counter play!} (26... Qg6 $11) 27. Qe6+ {[%emt 0:02:07]} Kh8 {[%emt 0:00:10]} 28. Rad1 $40 {[%emt 0:05:21][%cal Od1d7][%mdl 128] And now Rd7! would win. White is up to no good.} ({Of course not} 28. Qxa6 Rg8 29. Qc6 (29. Qxa7 $2 Qxg2#) 29... Rg6 $15) 28... Rf6 {[%emt 0:01:47]} 29. Qe7 {[%emt 0:12:10]} Rg8 {[%emt 0:02:15][%csl Gg8][%cal Rg5g2]} 30. g4 {[%emt 0:00:35]} (30. Qxa7 $2 Qxg2#) 30... Qh4 {[%emt 0:09:07]} 31. Kh2 {[%emt 0:10:30][%mdl 8192] Prevents Qg3+.} (31. Qxa7 $11 {and White stays safe.} Qxh3 32. f3 Qg3+ 33. Kh1 Qh3+ 34. Kg1 Qg3+ 35. Kh1 Qh3+ 36. Kg1) 31... Bxf2 $19 {[%emt 0:04:35] ( -> ...Qg3+)} 32. Qc7 {[%emt 0:00:04] Wards off Qg3+. Strongly threatening Kg2.} Re8 {[%emt 0:01:33]} ({And not} 32... Rxg4 33. Rd8+ Rg8 34. Rxg8+ Kxg8 35. Qd8+ Kf7 36. Qd5+ Kf8 37. Qd8+ Kg7 38. Qe7+ Kg6 39. Qe8+ Kh7 40. Qe7+ Kh8 41. Qe8+ Kh7 42. Qe7+ Kg8 43. Qd8+ Kf7 44. Qd5+ Kf8 45. Qa8+ Kf7 46. Qd5+ $11) 33. Kg2 {[%emt 0:01:35] [#]} (33. Bxf5 {gets mated.} Rxf5 34. gxf5 Bb6 35. Qxb6 Re2+) (33. Rd8 $142 Qg3+ {[%mdl 64] Deflection} 34. Qxg3 Bxg3+ 35. Kxg3 Rxd8 36. Bxf5) 33... Rf7 $3 {[%emt 0:01:38][%mdl 576] Deflection} 34. Qd6 {[%emt 0:00:43]} (34. Qf4 Ba7) 34... fxg4 {[%emt 0:00:37][%csl Gg4][%cal Rh4h3]} 35. Qg6 {[%emt 0:00:34]} Qxh3# {[%emt 0:00:06] Ingenious play by Zhukova!   Weighted Error Value: White=0.78/Black=0.04 (flawless)} 0-1

[Event "European Women-ch 2023"]
[Site "Petrovac"]
[Date "2023.03.21"]
[Round "4.13"]
[White "Efroimski, Marsel"]
[Black "Urh, Zala"]
[Result "1-0"]
[ECO "B30"]
[WhiteElo "2451"]
[BlackElo "2294"]
[Annotator "TA"]
[PlyCount "53"]
[EventDate "2023.03.15"]
[EventType "swiss"]
[EventCountry "MNE"]
[SourceTitle "playchess.com"]
[Source "ChessBase"]
[SourceQuality "1"]
[TimeControl "40/5400+30:1800+30"]

{[%evp 9,53,20,51,42,44,9,11,19,39,36,97,86,133,100,115,82,207,210,210,99,97,98,156,85,112,90,614,614,962,584,1031,768,768,765,724,749,1345,1335,1395,1381,29990,29991,29991,29992,29992,29993]} 1. e4 {[%emt 0:00:01]} c5 {[%emt 0:00:08]} 2. Nf3 {[%emt 0:00:04]} Nc6 {[%emt 0:00:11]} 3. Bb5 {[%emt 0:00:04]} e6 {[%emt 0:00:06]} 4. O-O {[%emt 0:02:03]} Nge7 {[%emt 0:01:02]} 5. Re1 {[%emt 0:00:22]} b6 {[%emt 0:00:49]} 6. c3 {[%emt 0:17:01] B30: Sicilian: 2...Nc6 3 Bb5, lines without ...g6.} a6 {[%emt 0:00:50]} 7. Bxc6 {[%emt 0:00:06]} Nxc6 {[%emt 0:00:52]} 8. d4 {[%emt 0:00:03] [#] The position is equal.} cxd4 $146 {[%emt 0:10:57]} ({Predecessor:} 8... d5 9. Bg5 Be7 10. Bxe7 Nxe7 11. dxc5 bxc5 12. exd5 Nxd5 13. Qa4+ Qd7 14. Qc4 O-O 15. Qxc5 {1-0 Yoo,C (2463)-Narayanan,S (2605) Wch Rapid Almaty 2022 (7)}) 9. cxd4 {[%emt 0:01:11]} Qc7 {[%emt 0:04:26]} (9... Bd6 $14) 10. Nc3 $16 {[%emt 0:02:00]} Be7 {[%emt 0:02:26]} ({Black should try} 10... Bb4) 11. Be3 {[%emt 0:03:34] Threatens to win with d5.} O-O {[%emt 0:03:50]} 12. Rc1 {[%emt 0:08:51]} Bb7 {[%emt 0:28:41] [#]} (12... Bd8 $16 {was called for.}) 13. d5 $1 $18 {[%emt 0:02:29]} Ne5 {[%emt 0:01:29]} 14. Nxe5 {[%emt 0:09:34]} (14. Na4 $18 {is the precise move to win.} Nxf3+ 15. Qxf3) 14... Qxe5 $16 {[%emt 0:00:07]} 15. Bxb6 {[%emt 0:00:17]} f5 {[%emt 0:02:26]} (15... Rac8 $142) 16. exf5 {[%emt 0:13:39]} (16. Bd4 $142 Qd6 17. Na4) 16... Qxf5 {[%emt 0:01:10][%cal Oa8e8]} 17. dxe6 {[%emt 0:00:19]} Rf6 $2 {[%emt 0:13:28][%mdl 8192]} (17... Bc5 $2 18. Bxc5 Qxc5 19. Ne4 $18 (19. exd7 $2 Qxf2+ 20. Kh1 Bxg2#)) (17... Bh4 $16 18. Qd4 (18. Qxd7 $2 Bxf2+ 19. Kf1 Bxb6+ 20. Ke2 Rad8 $19) (18. e7 Rfe8 $16) 18... Bg5) 18. exd7 $18 {[%emt 0:03:37]} (18. Qxd7 Bxg2 19. Qxe7 Bh3 $11) 18... Rg6 {[%emt 0:08:20][%cal Of5h3] Hoping for ...Qh3!} 19. g3 {[%emt 0:01:32]} (19. d8=B $2 Rxg2+ 20. Kf1 Rxf2+ 21. Bxf2 Qh3+ 22. Ke2 Bf3+ 23. Kd2 Rxd8+ $19) (19. d8=Q+ $2 Rxd8 20. Rxe7 (20. Bxd8 Rxg2+ 21. Kh1 Rxh2+ {[%mdl 64] Decoy} 22. Kxh2 Qxf2+ 23. Kh3 Qh4#) (20. Qb3+ $2 Kh8 $19) 20... Rxg2+ 21. Kf1 Rg1+ 22. Kxg1 Rxd1+ 23. Rxd1 Qg5+ 24. Kf1 Qxe7 25. Rd8+ Kf7 $19) 19... Bf3 {[%emt 0:11:52] [#]} 20. Rxe7 $1 {[%emt 0:06:52][%cal Be1e7,Be7e8,Be8a8][%mdl 32]} Bxd1 {[%emt 0:04:07]} 21. Re8+ {[%emt 0:00:26]} (21. d8=B $2 {is the wrong capture.} Bf3 22. Re8+ Kf7 23. Re7+ Kf8 $19) ({Weaker is} 21. d8=R+ Rxd8 22. Bxd8 Bf3 23. Re8+ Kf7 24. Re7+ Kf8 $11) 21... Kf7 {[%emt 0:01:21]} 22. Rxa8 {[%emt 0:00:12]} Rd6 {[%emt 0:01:24]} 23. Rxd1 {[%emt 0:00:28]} (23. d8=B $2 Bf3 24. Ra7+ (24. Rxa6 {gets mated.} Qh3 25. Ra7+ Kg8) 24... Kg6 $19) 23... Rxd1+ {[%emt 0:00:38]} 24. Nxd1 {[%emt 0:00:04]} Qe4 {[%emt 0:00:04]} 25. d8=Q {[%emt 0:00:52] White mates.} Qe1+ {[%emt 0:00:03]} 26. Kg2 {[%emt 0:00:05]} Qe4+ {[%emt 0:00:04]} 27. f3 {[%emt 0:00:05] Weighted Error Value: White=0.47/Black=0.88} 1-0

[Event "European Women-ch 2023"]
[Site "Petrovac"]
[Date "2023.03.21"]
[Round "4.13"]
[White "Garcia Martin, Marta"]
[Black "Hajiyeva, Laman"]
[Result "1-0"]
[ECO "C02"]
[WhiteElo "2306"]
[BlackElo "2118"]
[Annotator "TA"]
[PlyCount "71"]
[EventDate "2023.03.15"]
[EventType "swiss"]
[EventCountry "MNE"]
[SourceTitle "playchess.com"]
[Source "ChessBase"]
[SourceQuality "1"]
[TimeControl "40/5400+30:1800+30"]

{[%evp 12,71,18,18,20,12,18,26,48,44,59,43,134,131,140,138,347,328,284,202,363,126,91,91,337,335,366,338,373,372,351,299,299,298,456,496,500,500,500,500,530,530,631,631,630,614,688,632,907,360,893,882,889,884,904,893,1057,1036,1066,1003,29975,29977]} 1. e4 {[%emt 0:02:15]} e6 {[%emt 0:00:05]} 2. d4 {[%emt 0:00:16]} d5 {[%emt 0:00:04]} 3. e5 {[%emt 0:00:09]} c5 {[%emt 0:00:04]} 4. c3 {[%emt 0:00:06]} Qb6 {[%emt 0:00:05]} 5. Nf3 {[%emt 0:00:28]} Nc6 {[%emt 0:00:19]} 6. a3 {[%emt 0:01:21]} Nh6 {[%emt 0:00:51]} 7. Bd3 $1 {[%emt 0:01:17][%mdl 4] is more profitable than 7.b4 at the moment.} cxd4 {[%emt 0:02:45] C02: French: Advance Variation.} 8. O-O {[%emt 0:02:11]} Bd7 {[%emt 0:04:36]} 9. b4 {[%emt 0:12:14] [#]} Ng4 $146 {[%emt 0:08:09] White has an edge.} ({Predecessor:} 9... a6 10. c4 dxc4 11. Bxc4 Nf5 12. Bd3 Be7 13. Nbd2 Qc7 14. Qe2 Na7 15. Ne4 h5 {0-1 Kulaots,K (2525)-Bacrot,E (2659) EU-ch 23rd Vrnjacka Banja 2023 (4)}) 10. Qe2 {[%emt 0:18:35]} dxc3 {[%emt 0:11:59] [#] Strongly threatening ...Nd4.} 11. Nxc3 {[%emt 0:04:36]} (11. h3 {is interesting.} c2 12. Nc3 h5 13. Bb2) 11... d4 {[%emt 0:08:39]} ({Black should try} 11... Be7 $14) 12. Na4 {[%emt 0:09:30][%mdl 1024] White has strong compensation.} Qc7 {[%emt 0:07:07][%cal Rg4e5]} 13. Bf4 {[%emt 0:00:17][%cal Bc1f4,Bf4g3,Bg3b8][%mdl 32]} f6 $2 {[%emt 0:11:22]} (13... Nf6 $16) 14. Rac1 $18 {[%emt 0:03:49] [#] b5 would be deadly.} Qb8 {[%emt 0:05:30]} (14... fxe5 $2 15. Bg3 $18) 15. Bg3 {[%emt 0:11:12]} Ncxe5 {[%emt 0:07:40]} (15... Ngxe5 {might work better.} 16. Rxc6 {[%mdl 64] Remove Defender} (16. b5 Nxf3+ {[%mdl 64] Remove Defender} 17. Qxf3 Ne5 $16) 16... Bxc6 17. Nxe5 fxe5 18. Bxe5 Bd6 19. Bxg7 Kd7 20. Nc5+ Bxc5 21. Bxh8 Qxh8 22. bxc5 Qf6) 16. Nxe5 $2 {[%emt 0:01:13]} (16. Bb5 d3 17. Bxd7+ Kxd7 $18) (16. Nxd4 $18 {has better winning chances. aiming for Bb5.} Bxa4 17. Nxe6) 16... Nxe5 $16 {[%emt 0:00:08]} 17. Qh5+ {[%emt 0:00:39]} Kd8 $2 {[%emt 0:02:44]} (17... Ke7 $16 {is a better defense.}) 18. Nc5 $18 {[%emt 0:00:35]} Bxc5 {[%emt 0:04:23]} 19. Rxc5 {[%emt 0:00:46]} Nxd3 {[%emt 0:07:19]} 20. Bxb8 {[%emt 0:00:21]} Nxc5 {[%emt 0:00:03]} 21. Qxc5 {[%emt 0:10:51]} Rxb8 {[%emt 0:00:10]} 22. Qxd4 {[%emt 0:04:03][%cal Of1d1] White wants to mate with Rd1!} (22. Qxa7 $6 Ke7 23. Qxd4 Bc6 24. Qc5+ (24. Rd1 Rhd8 $16) 24... Kf7 $18) 22... Ke7 {[%emt 0:01:22]} (22... Rc8 $142 23. Rd1 (23. Qxa7 Bc6 $18) 23... Rc7) 23. Qc5+ {[%emt 0:00:41]} (23. Qxa7 Rhc8 24. Re1 Bb5 $18) ({Weaker is} 23. Rd1 Rhd8 24. Qc5+ (24. Qxa7 Bc6 $16) 24... Ke8 25. Qh5+ (25. Qxa7 Bc6 $16) 25... Kf8 26. Qc5+ Ke8 27. Qh5+ (27. Qxa7 Bc6 $16) 27... Kf8 28. Qc5+ Ke8 $18) 23... Kf7 {[%emt 0:02:16]} 24. Qc7 {[%emt 0:00:05]} ({Not} 24. Qxa7 Bc6 25. f3 Rhc8 $16) 24... Rhd8 {[%emt 0:01:31]} 25. Rd1 {[%emt 0:00:08]} Ke8 {[%emt 0:00:22]} 26. h4 {[%emt 0:00:44]} ({Worse is} 26. Rxd7 Rxd7 27. Qxb8+ Rd8 $17) 26... Bc6 {[%emt 0:03:23]} 27. Rxd8+ {[%emt 0:00:17]} Rxd8 {[%emt 0:00:01]} 28. Qxg7 {[%emt 0:00:22][%mdl 4096] Endgame KQ-KRB} Rd1+ {[%emt 0:01:44]} 29. Kh2 {[%emt 0:00:05]} Rd7 {[%emt 0:03:27]} 30. Qg8+ {[%emt 0:00:26]} Ke7 {[%emt 0:00:01]} 31. Qxh7+ {[%emt 0:00:13]} Kd6 {[%emt 0:00:13]} 32. Qh8 {[%emt 0:00:42]} Ke5 {[%emt 0:01:09]} 33. h5 {[%emt 0:01:28]} Be4 {[%emt 0:02:32]} 34. f3 {[%emt 0:00:21]} Bb1 {[%emt 0:00:49]} 35. Qb8+ {[%emt 0:00:54]} Kd5 {[%emt 0:00:56]} 36. Qc8 {[%emt 0:00:43] Weighted Error Value: White=0.20 (precise) /Black=0.75} 1-0

[Event "European Women-ch 2023"]
[Site "Petrovac"]
[Date "2023.03.21"]
[Round "4.13"]
[White "Shuqja, Klean"]
[Black "Petrova, Irina"]
[Result "1-0"]
[ECO "B08"]
[WhiteElo "1884"]
[BlackElo "2123"]
[Annotator "TA"]
[PlyCount "119"]
[EventDate "2023.03.15"]
[EventType "swiss"]
[EventCountry "MNE"]
[SourceTitle "playchess.com"]
[Source "ChessBase"]
[SourceQuality "1"]
[TimeControl "40/5400+30:1800+30"]

{[%evp 24,119,41,36,60,14,49,36,73,3,77,71,80,50,65,60,59,0,0,0,0,0,29,0,37,0,15,25,52,52,52,39,50,39,62,60,89,89,120,122,160,162,164,164,175,152,174,160,156,147,147,147,199,128,142,138,175,182,272,274,272,266,260,252,272,250,270,268,316,334,334,333,343,322,304,218,748,731,728,694,669,646,551,0,476,424,698,639,2516,2172,1107,856,1238,1073,985,883,918,877]} 1. e4 {[%emt 0:04:58]} d6 {[%emt 0:00:12]} 2. d4 {[%emt 0:00:03]} g6 {[%emt 0:00:14]} 3. Nc3 {[%emt 0:00:04]} Bg7 {[%emt 0:00:07]} 4. Nf3 {[%emt 0:00:10]} Nf6 {[%emt 0:00:44]} 5. Be2 {[%emt 0:00:14]} O-O {[%emt 0:00:40]} 6. O-O {[%emt 0:00:02]} Bg4 {[%emt 0:01:53]} 7. Be3 {[%emt 0:00:14]} Nc6 {[%emt 0:00:27]} 8. d5 {[%emt 0:00:12]} Bxf3 {[%emt 0:00:29]} 9. Bxf3 {[%emt 0:00:02]} Ne5 {[%emt 0:00:05]} 10. Be2 {[%emt 0:00:06]} c6 {[%emt 0:00:04]} 11. f4 {[%emt 0:00:18]} Ned7 {[%emt 0:00:06]} 12. dxc6 {[%emt 0:00:05]} bxc6 {[%emt 0:00:05]} 13. Qd2 {[%emt 0:00:33]} Qc7 {[%emt 0:04:12] B08: Pirc Defence: Classical System.} 14. Bf3 {[%emt 0:03:16]} (14. Rad1 $14) 14... Rab8 {[%emt 0:05:59]} 15. Na4 {[%emt 0:06:07] [#]} c5 $146 {[%emt 0:11:00][%cal Of6e4] White is slightly better.} ({Predecessor:} 15... Nb6 16. Nxb6 axb6 17. c4 Nd7 18. Rfd1 Rfd8 19. Rac1 Ra8 20. a3 Nc5 21. Qc2 Bh6 {½-½ Kobas,A (2320)-Redzepagic,R YUG-ch40 Novi Sad 1985}) 16. Rab1 {[%emt 0:06:52]} ({White should play} 16. b3 $16) 16... Rb4 {[%emt 0:02:46]} (16... Nxe4 $11 17. Bxe4 Rb4) 17. Nc3 $16 {[%emt 0:02:04]} Rc8 {[%emt 0:08:49]} 18. a3 {[%emt 0:05:43]} Rbb8 {[%emt 0:00:38]} 19. b3 {[%emt 0:03:55]} Qa5 {[%emt 0:05:00]} 20. Nd5 {[%emt 0:10:37]} (20. Rfd1 $14) 20... Qxd2 $11 {[%emt 0:00:38]} 21. Nxf6+ {[%emt 0:03:24]} Bxf6 {[%emt 0:00:36]} 22. Bxd2 {[%emt 0:00:02]} Nb6 {[%emt 0:06:04]} 23. Rfe1 {[%emt 0:09:11]} Bg7 {[%emt 0:02:08]} (23... Bd4+ $5 24. Kf1 c4 $11) 24. a4 {[%emt 0:08:17][%cal Ba3a4,Ba4a5][%mdl 32]} c4 {[%emt 0:03:33]} 25. a5 {[%emt 0:03:42]} Bd4+ {[%emt 0:00:55]} 26. Be3 $1 {[%emt 0:03:58]} Bxe3+ {[%emt 0:00:08]} 27. Rxe3 {[%emt 0:00:01]} Nd7 {[%emt 0:00:08]} 28. b4 {[%emt 0:06:19]} Rc5 {[%emt 0:14:12]} 29. Ree1 {[%emt 0:04:01]} Rc7 {[%emt 0:03:22]} 30. c3 {[%emt 0:00:54]} h5 {[%emt 0:03:27]} 31. Rbd1 {[%emt 0:02:02]} f6 {[%emt 0:04:12]} 32. g3 {[%emt 0:01:57]} Kf7 {[%emt 0:02:55]} 33. Rd4 {[%emt 0:01:36]} Rbc8 {[%emt 0:01:48]} 34. Kf2 {[%emt 0:03:48]} Kg7 {[%emt 0:03:33]} 35. Bd1 {[%emt 0:02:10]} Nf8 {[%emt 0:05:19]} 36. h4 {[%emt 0:03:15]} Ne6 {[%emt 0:03:17]} 37. Rd2 {[%emt 0:01:53]} Nf8 {[%emt 0:00:24]} (37... a6 $16 {keeps fighting.} 38. Ke3 Rh8) 38. Ba4 {[%emt 0:02:11]} (38. g4 $18) 38... Nd7 {[%emt 0:01:11]} 39. Rd5 {[%emt 0:02:25][%cal Oe4e5] White is more active.} Rf8 {[%emt 0:03:29]} 40. Kg2 {[%emt 0:00:00]} Rfc8 {[%emt 0:00:00] [#]} (40... Kf7 $142 41. Rd4 Rfc8) 41. e5 $1 $18 {[%emt 0:14:36][%mdl 512]} fxe5 {[%emt 0:05:16]} 42. Bxd7 {[%emt 0:00:08]} Rxd7 {[%emt 0:00:04]} 43. fxe5 {[%emt 0:00:09][%mdl 4096] Endgame KRR-KRR} Rc6 {[%emt 0:05:37]} 44. Red1 {[%emt 0:09:30]} a6 {[%emt 0:02:01]} 45. Kf3 {[%emt 0:00:54]} Kf7 {[%emt 0:01:27]} 46. Ke4 {[%emt 0:01:22]} Ke6 {[%emt 0:00:32]} 47. exd6 {[%emt 0:01:42]} Rcxd6 {[%emt 0:00:28]} 48. Rxd6+ {[%emt 0:01:03]} exd6 {[%emt 0:00:05] KR-KR} 49. Kd4 {[%emt 0:00:54]} d5 $2 {[%emt 0:00:54]} (49... Rf7 50. Kxc4 Rc7+ 51. Kd4 d5 52. Re1+ Kd6) 50. Re1+ {[%emt 0:01:06]} Kd6 {[%emt 0:02:57]} 51. Re5 {[%emt 0:00:39]} Kc6 {[%emt 0:00:30]} 52. Re6+ {[%emt 0:00:45][%mdl 64] Skewer} Rd6 {[%emt 0:01:34]} 53. Re5 {[%emt 0:03:43]} Rd7 $1 {[%emt 0:00:46]} 54. Re8 {[%emt 0:01:10] Dodges Rd8. Rb8 would be deadly. White is clearly winning.} Rd6 {[%emt 0:02:02]} (54... Kc7 $142 55. Re6 Rd6) 55. Rb8 {[%emt 0:00:48]} Kc7 {[%emt 0:00:32] [#]} 56. Rb6 {[%emt 0:00:44][%mdl 512]} Rd8 {[%emt 0:02:17]} 57. Rxg6 {[%emt 0:00:42]} Rf8 {[%emt 0:00:09]} 58. Kxd5 {[%emt 0:00:15]} Rf3 {[%emt 0:00:21]} 59. Kxc4 {[%emt 0:00:07]} Kb7 {[%emt 0:00:09]} 60. Kd4 {[%emt 0:00:41] Weighted Error Value: White=0.23 (precise) /Black=0.29 (precise)} 1-0

[Event "European Women-ch 2023"]
[Site "Petrovac"]
[Date "2023.03.21"]
[Round "4.14"]
[White "Hrebenshchykova, Yelyzaveta"]
[Black "Arabidze, Meri"]
[Result "1/2-1/2"]
[ECO "B85"]
[WhiteElo "2289"]
[BlackElo "2433"]
[Annotator "TA"]
[PlyCount "39"]
[EventDate "2023.03.15"]
[EventType "swiss"]
[EventCountry "MNE"]
[SourceTitle "playchess.com"]
[Source "ChessBase"]
[SourceQuality "1"]
[TimeControl "40/5400+30:1800+30"]

{[%evp 25,39,28,32,16,36,20,22,30,66,40,50,0,40,0,30,0]} 1. e4 {[%emt 0:00:03]} c5 {[%emt 0:00:06]} 2. Nf3 {[%emt 0:00:05]} e6 {[%emt 0:00:04]} 3. d4 {[%emt 0:00:04]} cxd4 {[%emt 0:00:05]} 4. Nxd4 {[%emt 0:00:03]} Nc6 {[%emt 0:00:07]} 5. Nc3 {[%emt 0:00:15]} Qc7 {[%emt 0:00:09]} 6. Be2 {[%emt 0:02:12]} Nf6 {[%emt 0:00:08]} 7. O-O {[%emt 0:01:12]} Be7 {[%emt 0:00:10]} 8. Be3 {[%emt 0:01:41]} O-O {[%emt 0:00:13]} 9. f4 {[%emt 0:01:48]} d6 {[%emt 0:00:06]} 10. Kh1 {[%emt 0:01:16]} Nxd4 {[%emt 0:02:03]} 11. Qxd4 {[%emt 0:05:35]} e5 {[%emt 0:04:45]} 12. Qd3 {[%emt 0:05:18]} a6 {[%emt 0:08:30]} 13. a4 {[%emt 0:11:41]} exf4 {[%emt 0:02:58]} 14. Bxf4 {[%emt 0:00:55] B85: Sicilian Scheveningen: 6 Be2 a6, lines with early Be3.} Be6 {[%emt 0:00:16]} 15. Qg3 {[%emt 0:08:01]} Rfd8 {[%emt 0:10:15]} 16. Rad1 {[%emt 0:10:51] The position is equal.} Qc5 {[%emt 0:16:30] [#]} 17. Be3 $146 {[%emt 0:09:04]} (17. Bh6 $5 {[%cal Rg3g7]} g6 18. Be3 $14) ({Predecessor:} 17. Bh6 Ne8 18. Nd5 Bxd5 19. Rxd5 Qxc2 20. Rdf5 f6 21. Bh5 Kh8 22. Bf7 Rac8 23. Rh5 Qxe4 24. Re1 Qxe1+ 25. Qxe1 gxh6 26. h3 Bf8 27. Qg3 Rc1+ 28. Kh2 Bg7 29. Rxh6 Rc5 30. Qg6 {1-0 Brkic,A (2575)-Galego,L (2485) EU-Cup 28th Eilat 2012 (3.2)}) 17... Qe5 {[%emt 0:02:05]} 18. Bf4 {[%emt 0:00:47]} Qc5 {[%emt 0:01:45]} 19. Be3 {[%emt 0:00:11]} Qe5 {[%emt 0:03:27]} 20. Bf4 {[%emt 0:02:00] Weighted Error Value: White=0.25 (precise) /Black=0.05 (flawless)} 1/2-1/2